Cogmind - Beta 15 @@@ ROGUE MODE // 2025.07.26 @ 23:15:48 Player: jumpy Result: Destroyed by Tesla Bomb Trap Performance ------------- Evolutions (1) 500 Regions Visited (4) 800 Robots Destroyed (51) 255 Value Destroyed (1737) 1737 Prototype IDs (5) 100 Alien Tech Used (0) 0 Bonus (200) 200 TOTAL SCORE: 3592 Bonus ------- Entered Garrisons 200 Cogmind --------- Core Integrity 0/400 Matter 126/300 Energy 261/265 System Corruption 12% Temperature Cool (2) Movement Walking (120) Location -9/Garrison Parts ------- > --- POWER (1) -------- Improved Ion Engine > --- PROPULSION (3) --- Aluminum Leg Aluminum Leg > --- UTILITY (3) ------ Small Storage Unit Light Armor Plating > --- WEAPON (2) ------- Advanced Beam Cannon > --- INVENTORY (8) ---- Ion Engine Heat Sink Improved Terrain Scanner Relay Coupler [NC] (25) Relay Coupler [Grunt] (27) Peak State ------------ > --- POWER ------------ Heavy Ion Engine > --- PROPULSION ------- Aluminum Leg Aluminum Leg Aluminum Leg > --- UTILITY ---------- Small Storage Unit Seismic Detector Hardened Light Armor Plating > --- WEAPON ----------- Advanced Beam Cannon Scatter Rocket Array > --- INVENTORY -------- Heavy Ion Engine Wheel Wheel Improved Terrain Scanner Seismic Detector Light Armor Plating Advanced Beam Cannon Mining Laser [Rating: 20] Favorites ----------- Power Ion Engine Engine Ion Engine Propulsion Aluminum Leg Leg Aluminum Leg Wheel Wheel Utility Small Storage Unit Device Seismic Detector Storage Small Storage Unit Protection Hardened Light Armor Plating Weapon Advanced Beam Cannon Energy Gun Medium Laser Energy Cannon Advanced Beam Cannon Ballistic Gun Assault Rifle Launcher Scatter Rocket Array Build | -11 -10 -9 -9 -9 ------- Run | Yrd Mat Mat Sto Gar Slots Evolved 2 | . . 2 . . Power . | . . . . . Propulsion 1 | . . 1 . . Utility 1 | . . 1 . . Weapon . | . . . . . Parts Attached 36 | 7 1 10 9 9 Power 7 | 1 . 3 . 3 Engine 7 | 1 . 3 . 3 Core . | . . . . . Reactor . | . . . . . Propulsion 11 | 2 1 2 2 4 Treads . | . . . . . Leg 10 | 2 1 2 2 3 Wheel 1 | . . . . 1 Hover . | . . . . . Flight . | . . . . . Utility 7 | 2 . 1 3 1 Device 2 | 1 . . 1 . Storage 1 | 1 . . . . Processor . | . . . . . Hackware . | . . . . . Protection 4 | . . 1 2 1 Artifact . | . . . . . Weapon 11 | 2 . 4 4 1 Energy Gun 3 | 1 . 1 1 . Energy Cannon 5 | . . 2 2 1 Ballistic Gun 2 | 1 . 1 . . Ballistic Cannon . | . . . . . Launcher 1 | . . . 1 . Special Weapon . | . . . . . Impact Weapon . | . . . . . Slashing Weapon . | . . . . . Piercing Weapon . | . . . . . Special Melee Weapon . | . . . . . Unidentified Prototypes 3 | . . 1 2 . Corrupted Parts 1 | . . 1 . . System Corruption 2 | . . 2 . . Parts Lost 16 | . . 2 2 12 Power 1 | . . . . 1 Propulsion 8 | . . 1 2 5 Utility 4 | . . 1 . 3 Weapon 3 | . . . . 3 Highest Loss Streak 9 | . . 1 1 9 To Critical Strikes . | . . . . . Average Backups 6 | 4 7 7 7 6 Power . | . 1 . 1 . Propulsion 1 | 1 2 2 2 . Utility 2 | . 2 2 2 3 Weapon 1 | . 1 1 2 1 Tool/Special . | . . . . . Unused Backups 9 | 1 . 1 3 4 Power 1 | . . 1 . . Propulsion 2 | 1 . . 1 . Utility 4 | . . . . 4 Weapon 2 | . . . 2 . Tool/Special . | . . . . . Average Slot Usage (%) 91 | . 100 94 94 80 Engine 11 | . 14 11 11 10 Leg 28 | . 28 32 31 20 Device 10 | . 14 11 11 6 Storage 11 | . 14 11 11 11 Protection 6 | . . 6 7 10 Energy Gun 4 | . 14 3 5 . Energy Cannon 11 | . . 14 10 15 Ballistic Gun 4 | . 14 4 5 . Peak Build Rating 20 | 7 8 15 20 20 Average Rating 11 | 6 7 12 15 14 On Entrance 9 | . 7 8 13 17 Naked Turns . | . . . . . Heaviest Build 31 | 15 15 26 27 31 Greatest Support 30 | 20 20 30 30 30 Greatest Overweight (x) 3 | . . . 1 3 Average Overweight (x) . | . . . . . Largest Inventory Capacity 8 | 8 8 8 8 8 Average Capacity 7 | 7 8 8 8 8 Most Carried 8 | 6 8 8 8 8 Average Carried 6 | 4 7 7 7 6 Final Capacity 8 | 8 8 8 8 8 Final Carried 8 | 6 8 8 7 5 Class Distribution -------------------- 54% | Scavenger-Mutant 45% | Mutant Dominant Class ---------------- Mutant | -10/Materials Scavenger-Mutant | -9/Materials Scavenger-Mutant | -9/Storage Scavenger-Mutant | -9/Garrison Resources | -11 -10 -9 -9 -9 ----------- Run | Yrd Mat Mat Sto Gar Matter Collected 916 | 333 55 120 175 233 Remotely . | . . . . . Salvage Created 1725 | 305 229 361 436 394 Parts 112 | 32 13 13 21 33 Haulers Intercepted 1 | . . 1 . . Recyclers Shooed 1 | . 1 . . . Parts Field Recycled . | . . . . . Retrieved Matter . | . . . . . Parts Self-Destructed . | . . . . . Prevented . | . . . . . Kills | -11 -10 -9 -9 -9 ------- Run | Yrd Mat Mat Sto Gar Combat Hostiles Destroyed 34 | . 4 6 9 15 Guns 12 | . 4 2 6 . Cannons 10 | . . 4 3 3 AOE 12 | . . . . 12 Classes Destroyed 11 | 3 2 3 . 3 Worker 3 | 2 1 . . . Tunneler 9 | 9 . . . . Hauler 1 | . . 1 . . Recycler 3 | 1 . 2 . . Operator 1 | . 1 . . . Swarmer 6 | . . 3 . 3 Grunt 17 | . 4 2 4 7 Brawler 1 | . . . . 1 Duelist 1 | . . . . 1 Sentry 7 | . . 1 5 1 Programmer 2 | . . . . 2 Best Kill Streak 10 | 8 6 3 2 10 Combat Bots Only 10 | . 4 2 2 10 Max Kills in Single Turn 3 | 1 2 1 1 3 Gunslinging . | . . . . . Exploded 3 | . . . . 3 Melee . | . . . . . Uniques/NPCs Destroyed . | . . . . . Combat | -11 -10 -9 -9 -9 -------- Run | Yrd Mat Mat Sto Gar Hostile Shots Fired 224 | . 29 72 31 92 Missed 62 | . 12 23 7 20 Hits 162 | . 17 49 24 72 Projectile 162 | . 17 49 24 72 Critical Strikes 6 | . . 2 4 . Part Disruptions 1 | . . . . 1 Damage Taken 2492 | . 293 493 337 1369 Core 438 | . 34 52 42 310 Absorbed by Shields . | . . . . . Core Remaining (%) 93 | 100 86 . . . Volleys Fired 116 | 21 15 22 25 33 Largest 2 | 2 2 2 2 2 Hottest 136 | 70 70 126 136 136 Shots Fired 203 | 42 30 40 51 40 Gun 134 | 42 30 20 42 . Cannon 63 | . . 20 9 34 Launcher 6 | . . . . 6 Special . | . . . . . Kinetic 67 | 21 15 10 21 . Thermal 110 | 21 15 10 30 34 Explosive 6 | . . . . 6 Electromagnetic 20 | . . 20 . . Robot Hit Streak 10 | 8 8 8 10 4 Robot Miss Streak 14 | 2 1 3 4 14 Penetration Max . | . . . . . Secondary Targets 2 | . 1 1 . . Max Gunslinging Chain 1 | . 1 1 . . Shots Hit Robots 122 | 25 23 26 34 14 Core Hits 87 | 13 16 12 15 31 Critical Kills . | . . . . . Critical Parts Destroyed . | . . . . . Critical Strikes 6 | 3 . 1 2 . Burn 6 | 3 . 1 2 . Melee Attacks . | . . . . . Impact . | . . . . . Slashing . | . . . . . Piercing . | . . . . . Sneak Attacks . | . . . . . Combat Hostiles . | . . . . . Follow-up Attacks . | . . . . . Damage Inflicted 2882 | 314 343 509 550 1166 Guns 1206 | 314 281 183 428 . Cannons 656 | . . 285 122 249 Explosions 1000 | . 62 26 . 912 Melee . | . . . . . Ramming 20 | . . 15 . 5 Kinetic 622 | 164 155 80 223 . Thermal 981 | 150 126 129 327 249 Explosive 912 | . . . . 912 Electromagnetic 347 | . 62 285 . . Impact . | . . . . . Slashing . | . . . . . Piercing . | . . . . . Highest Corruption 11 | . . 2 2 11 Average Corruption 3 | . . 2 2 5 Corruption Purged . | . . . . . Corruption Blocked . | . . . . . Effects 18 | . . . 6 12 Message Errors 4 | . . . . 4 Matter Fused 3 | . . . . 3 Heat Flow Errors 3 | . . . 2 1 Parts Rejected 2 | . . . 1 1 Data Loss (minor) 1 | . . . 1 . Data Loss (major) 1 | . . . 1 . Misfires 1 | . . . 1 . Alerts 1 | . . . . 1 Weapon Failures 2 | . . . . 2 Overload Shots . | . . . . . Overflow Damage 45 | . . 1 . 44 Projectiles 21 | . . 1 . 20 Explosions 24 | . . . . 24 Melee . | . . . . . Knockbacks . | . . . . . Impact . | . . . . . Kinetic . | . . . . . Secondary . | . . . . . Self-Inflicted Damage 482 | . 103 24 . 355 Shots 19 | . 3 1 . 15 Rammed 1 | . . . . 1 Targets Rammed 4 | . . 3 . 1 Kicked 3 | . . 3 . . Crushed . | . . . . . Highest Temperature 318 | 36 147 202 285 318 Average Temperature 78 | 12 68 81 79 107 Received Heat Transfer 570 | . 108 129 180 153 Effects 2 | . . . . 2 Interference 2 | . . . . 2 Siege Activations . | . . . . . Martial Activations . | . . . . . Shielding Activations . | . . . . . Robots Disrupted . | . . . . . Combat Hostiles . | . . . . . Robots Corrupted 1 | . . 1 . . Combat Hostiles . | . . . . . Parts Fried 2 | . . 2 . . Impact Corruptions . | . . . . . Robots Melted . | . . . . . Combat Hostiles . | . . . . . Parts Melted 5 | 2 . 1 . 2 Heat Transferred 2751 | 666 370 420 888 407 Parts Sabotaged . | . . . . . Parts Stolen . | . . . . . Parts Stripped . | . . . . . Power Chain Reactions 2 | . 1 1 . . Alert | -11 -10 -9 -9 -9 ------- Run | Yrd Mat Mat Sto Gar Maximum Alert Level 2 | . . . . 2 Low Security (%) 84 | 100 100 100 100 37 Level 1 10 | . . . . 42 Level 2 4 | . . . . 19 Level 3 . | . . . . . Level 4 . | . . . . . Level 5 . | . . . . . High Security . | . . . . . Max Security . | . . . . . Peak Influence 426 | 10 136 70 95 426 Initial 48 | . . 48 25 40 Average 86 | 2 35 29 52 259 Influence Increases 1173 | 60 156 180 271 506 Destroy 0b10 Robot/C 680 | . 80 120 180 300 Destroy 0b10 Robot/NC 85 | 60 10 15 . . Destroy Leader 142 | . 20 22 80 20 Successful Hack 30 | . . 5 11 14 Disable Machine 60 | . 45 15 . . Anti-Garrison Action 100 | . . . . 100 Destroy Structure 61 | . 1 3 . 57 Lose Combat Pursuer 15 | . . . . 15 Influence Decreases 747 | 60 40 236 269 142 Entered New Map 125 | . . 68 35 22 Time Decay 462 | 60 40 148 214 . Lost Part 160 | . . 20 20 120 Squads Dispatched 4 | . 1 . 3 . Investigation 2 | . . . 2 . Extermination . | . . . . . Reinforcement 2 | . 1 . 1 . Assault . | . . . . . Garrison . | . . . . . Intercept . | . . . . . Searches Triggered . | . . . . . Construction Impeded . | . . . . . Haulers Reinforced . | . . . . . Active Scanning Responses . | . . . . . Cargo Convoy Interrupts . | . . . . . Stealth | -11 -10 -9 -9 -9 --------- Run | Yrd Mat Mat Sto Gar Distress Signals 4 | . 1 2 1 . Communications Jammed . | . . . . . Distress Signals . | . . . . . Times Spotted 42 | . 5 11 11 15 Peak Tracking Total 6 | . 2 6 2 6 Tactical Retreats 1 | . . . . 1 Traps | -11 -10 -9 -9 -9 ------- Run | Yrd Mat Mat Sto Gar Traps Triggered 2 | . . . . 2 Indirectly . | . . . . . Trap Hack Attempts . | . . . . . Triggered . | . . . . . Disarmed . | . . . . . Reprogrammed . | . . . . . Reused . | . . . . . Traps Extracted . | . . . . . Installed . | . . . . . Triggered . | . . . . . Machines | -11 -10 -9 -9 -9 ---------- Run | Yrd Mat Mat Sto Gar Machines Disabled 6 | . 3 1 . 2 Max in Single Turn 3 | . 3 1 . 1 Garrison Relay 2 | . . . . 2 Machines Repaired . | . . . . . Machines Dismantled . | . . . . . Machines Sabotaged . | . . . . . Overloaded Fab Kills . | . . . . . Hacking | -11 -10 -9 -9 -9 --------- Run | Yrd Mat Mat Sto Gar Machines Accessed 10 | . 3 1 5 1 Terminals 9 | . 3 1 4 1 Fabricators . | . . . . . Repair Stations . | . . . . . Recycling Units . | . . . . . Scanalyzers . | . . . . . Garrison Access 1 | . . . 1 . Total Hacks 21 | . 7 2 11 1 Successful 10 | . 5 1 3 1 Failed 11 | . 2 1 8 . Catastrophic 3 | . . . 3 . Database Lockouts . | . . . . . Manual . | . . . . . Terminals 20 | . 7 2 10 1 Fabricators . | . . . . . Repair Stations . | . . . . . Recycling Units . | . . . . . Scanalyzers . | . . . . . Garrison Access 1 | . . . 1 . Terminal Hacks 9 | . 5 1 2 1 Prototype ID Bank 1 | . . 1 . . Open Door 1 | . . . 1 . Branch Access Points 1 | . . . 1 . Locate Traps 2 | . 2 . . . Dispatch Records 1 | . 1 . . . Zone Layout 2 | . 2 . . . Patrol Navigation 1 | . . . . 1 Fabricator Hacks . | . . . . . Repair Station Hacks . | . . . . . Recycling Unit Hacks . | . . . . . Scanalyzer . | . . . . . Garrison Access Hacks 1 | . . . 1 . Unlock Access 1 | . . . 1 . Unauthorized Hacks . | . . . . . Terminals . | . . . . . Fabricators . | . . . . . Repair Stations . | . . . . . Recycling Units . | . . . . . Scanalyzers . | . . . . . Garrison Access . | . . . . . Data Cores Recovered . | . . . . . Used . | . . . . . Hacking Detections 8 | . 3 1 4 . Full Trace Events 2 | . . . 2 . Feedback Events . | . . . . . Feedback Blocked . | . . . . . Robot Schematics Acquired . | . . . . . Robots Built . | . . . . . Authchips . | . . . . . Time . | . . . . . Total Robot Build Rating . | . . . . . Part Schematics Acquired . | . . . . . Parts Built . | . . . . . Authchips . | . . . . . Time . | . . . . . Total Part Build Rating . | . . . . . Parts Repaired . | . . . . . Time . | . . . . . Parts Recycled . | . . . . . Recycled Matter . | . . . . . Retrieved Matter . | . . . . . Retrieved Components . | . . . . . Parts Scanalyzed . | . . . . . Part Schematics Acquired . | . . . . . Parts Damaged . | . . . . . Bothacking | -11 -10 -9 -9 -9 ------------ Run | Yrd Mat Mat Sto Gar Used RIF Installer . | . . . . . Robots Hacked . | . . . . . Non-combat . | . . . . . Combat . | . . . . . Robot Hacks Applied . | . . . . . Relay Couplers Released 9 | . . . . 9 Machine Destruction 9 | . . . . 9 Fabnet Peak Effective % . | . . . . . Robots Rewired . | . . . . . Allies Hacked . | . . . . . Hacks Repelled . | . . . . . Allies | -11 -10 -9 -9 -9 -------- Run | Yrd Mat Mat Sto Gar Total Allies . | . . . . . Largest Group . | . . . . . Highest-Rated Group . | . . . . . Highest-Rated Ally . | . . . . . Total Orders . | . . . . . Ally Attacks . | . . . . . Total Damage . | . . . . . Kills . | . . . . . Allies Corrupted . | . . . . . Allies Melted . | . . . . . Intel | -11 -10 -9 -9 -9 ------- Run | Yrd Mat Mat Sto Gar Active Infowar (turns) 1460 | 179 213 348 457 263 Seismic 1460 | 179 213 348 457 263 Robot Analysis Total . | . . . . . Derelict Logs Recovered . | . . . . . Drone Launches . | . . . . . Drone Recoveries . | . . . . . Exploration | -11 -10 -9 -9 -9 ------------- Run | Yrd Mat Mat Sto Gar Turns Passed 1877 | 401 213 348 457 458 Spaces Moved 1145 | 267 130 205 268 275 Core 6 | 4 . . . 2 Treads . | . . . . . Legs 1087 | 263 130 205 268 221 Wheels 52 | . . . . 52 Hover . | . . . . . Flight . | . . . . . Fastest Speed 50 | 50 120 120 120 100 Average Speed 120 | 118 120 120 120 121 Slowest Speed 260 | 120 120 120 190 260 Overloaded Moves . | . . . . . Propulsion Burnouts . | . . . . . Robots Hopped . | . . . . . Potential Cave-ins . | . . . . . Cave-ins Triggered . | . . . . . Exploration Rate (%) 29 | 5 39 20 38 44 Regions Visited 4 Branch Regions 1 Pre-discovered Areas . | . . . . . Known Exits Taken 1 | . . . 1 . Unknown Exits Taken 3 | 1 1 1 . . Scrap Searched . | . . . . . Spaces Dug . | . . . . . Terrain Destroyed 62 | . 1 3 . 58 Melee . | . . . . . Projectile . | . . . . . AOE 62 | . 1 3 . 58 Terrain Rammed . | . . . . . Walls Destroyed . | . . . . . Machines Disabled . | . . . . . Actions | -11 -10 -9 -9 -9 --------- Run | Yrd Mat Mat Sto Gar Total 1423 | 305 157 267 349 345 Wait 88 | 3 9 21 37 18 Move 1141 | 266 129 204 267 275 Hop . | . . . . . Pick Up 19 | 7 2 4 3 3 Fast Attach 16 | 7 . 1 3 5 Attach 8 | . . 2 1 5 Detach . | . . . . . Swap 20 | . 1 7 8 4 Drop 11 | 1 1 3 5 1 Fire 116 | 21 15 22 25 33 Melee . | . . . . . Ram 1 | . . . . 1 Kick 3 | . . 3 . . Crush . | . . . . . Escape Stasis . | . . . . . Rewire . | . . . . . Trap . | . . . . . Miscellaneous . | . . . . . Route ------- -11/Scrapyard -10/Materials -9/Materials -9/Storage (discovered 2 exits: Rec / Gar) -9/Garrison (discovered 1 exit: *Rec) History --------- Turn | Location | Event 3 | -11/Scrapyard | Discovered new exit (range 15) 402 | -11/Scrapyard | Entered Materials 403 | -10/Materials | Build established: Mutant 592 | -10/Materials | Discovered new exit (range 16) 615 | -10/Materials | Entered another Materials area 615 | -9/Materials | Evolved 2 slots: Propulsion x1, Utility x1 932 | -9/Materials | Discovered new exit (range 8) 963 | -9/Materials | Entered Storage 1011 | -9/Storage | Build established: Scavenger-Mutant 1014 | -9/Storage | Identified exit to Recycling 1249 | -9/Storage | Found Prototype Launcher 1249 | -9/Storage | Identified Scatter Rocket Array 1419 | -9/Storage | Identified exit to Garrison 1420 | -9/Storage | Entered Garrison 1434 | -9/Garrison | Triggered checkpoint 1458 | -9/Garrison | Garrison Relay disabled 1591 | -9/Garrison | Triggered checkpoint 1591 | -9/Garrison | Triggered checkpoint 1594 | -9/Garrison | Triggered checkpoint 1629 | -9/Garrison | Destroyed 10 combat bots 1630 | -9/Garrison | Lost 3 parts (3n) 1674 | -9/Garrison | Triggered checkpoint 1728 | -9/Garrison | Core integrity fell below 50% 1737 | -9/Garrison | System corruption reached 10% 1741 | -9/Garrison | Core integrity fell below 20% 1771 | -9/Garrison | Lost 9 parts (1p2n3u3w) 1790 | -9/Garrison | Garrison Relay disabled 1872 | -9/Garrison | Discovered exit to Recycling (range 9) 1878 | -9/Garrison | Destroyed by Tesla Bomb Trap Last Messages --------------- 01774_ Acquired Lgt. Armor Plating. 01778_ Acquired 55 matter. 01786_ NUTW EXD5&CEDY2JF47X 01790_ Garrison Relay disabled. 01790_ Relay Coupler [NC] tumbles out of relay unit. 01790_ Relay Coupler [Grunt] tumbles out of relay unit. 01790_ Relay Coupler [Specialist] tumbles out of relay unit. 01793_ System corrupted: Adv. Beam Cannon failed to cycle. 01806_ U,,47L>KYSFPKQSK%KY X0 01821_ Acquired Relay Coupler [NC]. 01827_ Dropped Relay Coupler [NC]. 01830_ Acquired Relay Coupler [Grunt]. 01832_ &1=XQ/G,S6EM=GQQOBO%LU&J E0JKBTA| 01832_ Triggered Alarm Trap. 01832_ An alarm sounds. 01847_ System corrupted: Matter fused (-5). 01863_ System corrupted: Heat flow error (+150). 01872_ EXIT=FOUND: RECYCLING 01878_ Triggered Tesla Bomb Trap. 01878_ A bubble of electromagnetic force engulfs the area. Map ----- +----------------------------------------------------+ | ??????????????????????????????# "#""""""" | | ??????????????????????????????# " | | ??????????????????????????????# | | ??????????????????????????????# "#" | | ??????????????????????????????# "#"""" "" | | ??????????????????????????????# "#"""""!" | | ??????????????????????????????# ## ! # | | ??????????????????????????????# # !# | | ??????????????????????????????# # # | | ??????????????????????????????###### # | | ???????????????????????????????????####[## | | ??????????????????????????????????????# #? | | ??????????????????????????????????##### #? | | ??????????????????????????????????# #|#? | | ?????????????????????????????###### # #? | | ????????????????????####?????# [=#? | | ???????????????????? #?????# ## # # #? | | ????????????????????> #????" # # #? | | ???????????????????? #???#" # ## ##[#? | | ????????????????????# #???#" # ?# #? | | ????????????????????# #???#"# # # ?# #? | | ???????????????####?# #?????#?###?# ?# #? | | ???????????????? #?# #??????????? ?# #? | | ????????????????" #?# #???????????##?# #? | | ????????????????" ### ################ ## | | ????????????????"@ | | ????????????????" | | ??????????? ############### ###### | | ????????? #?????????????# #????? | | ????????""" """" #?????????????# #????? | | ??????????" ????" #?????????????# #????? | | ????????????????" ##?????????????# #????? | | ????????????????" #??????????????# #????? | | ???????????????? #??????????????# #????? | | ????????????????##???????????????# #????? | | ?????????????????????????????????# ###### | | ?????????????????????????????????# | | ?????????????????????????????????# | | ?????????????????????????????????######### | | ?????????????????????????????????????????? | | ?????????????????????????????????????????? | | ?????????????????????????????????????????? | | ?????????????????????????????????????????? | | ?????????????????????????????????????????? | | ?????????????????????????????????????????? | | ?????????????????????????????????????????? | | ?????????????????????????????????????????? | | ?????????????????????????????????????????? | | ?????????????????????????????????????????? | | ?????????????????????????????????????????? | +----------------------------------------------------+ Best States ------------- Heat Dissipation 28 Energy Generation 14 Energy Capacity 280 Matter Stores 300 Matter Capacity 300 Sight Range 16 Terrain Scan Density 10 Armor Coverage 150 Evasion (%) 55 Item Schematics ----------------- None Robot Schematics ------------------ None Fabricated ------------ Nothing Repaired ---------- Nothing Alien Tech Used ----------------- None Achievements -------------- None Challenges ------------ None Game ------ Seed AmuletSpikedRouter Manual? 0 Play Time 00:13:50 Cumulative 191.0 hours Start 2025.07.26 @ 23:04:56 End 2025.07.26 @ 23:15:48 Sessions 1 Manual Loads 0 Difficulty Rogue Special Mode None Game No. 464 Rogue 464 Adventurer 0 Explorer 0 Win Type - Total 8 Types 6/0/1/1/0/0/0/0/0/0 Lore% 74 Gallery% 66 Achievement% 51 Wizard Run 0 Options --------- Layout 0 ASCII 0 Keyboard 0 Movement Numpad Keybinds 0 Fullscreen 2 Font 18/Terminus Map View 76x50 Zoom Use 0% Tactical HUD 1 Map Filters NONE Filters SATURATION(100) Steam 1 RUN: 2ee80284-dc3c-4d59-a730-46b7304b82ec